bitfinex/quotes_SOLUSD_20250818
["timestamp","ask_amount","ask_price","bid_price","bid_amount"]
[1755518993159,0.06,181.94,181.9,0.67]
[1755518993354,0.06,181.94,181.91,40.15]
[1755518993554,0.06,181.94,181.92,7.4565607]
[1755518993766,0.72,181.94,181.93,39.48]
[1755518994069,0.72,181.94,181.93,93.68]
[1755518994279,0.72,181.94,181.93,119.68]
[1755518995279,0.72,181.94,181.93,125.17661957]
[1755518998364,0.06,181.94,181.93,125.17661957]
[1755518999662,0.06,181.94,181.93,70.97661957]
[1755519000969,0.72,181.94,181.93,70.97661957]
[1755519001285,0.06,181.94,181.93,71.64661957]
[1755519001876,0.72,181.94,181.93,31.49661957]
[1755519002044,0.72,181.94,181.93,70.87661957]
[1755519002969,0.06,181.94,181.93,70.87661957]
[1755519003764,0.72,181.94,181.93,70.87661957]
[1755519003969,0.06,181.94,181.93,70.87661957]
[1755519004596,0.72,181.94,181.93,70.87661957]
[1755519006592,0.72,181.94,181.93,31.49661957]
[1755519006797,0.72,181.94,181.93,70.83661957]
[1755519006974,0.72,181.94,181.93,44.83661957]
[1755519006975,8.1765607,181.94,181.93,44.83661957]
[1755519007170,0.06,181.94,181.93,44.83661957]
[1755519007703,0.72,181.94,181.93,44.83661957]
[1755519008371,8.1765607,181.94,181.93,44.83661957]
[1755519009068,0.72,181.94,181.93,44.83661957]
[1755519011403,0.72,181.94,181.93,5.49661957]
[1755519011579,0.72,181.94,181.93,71.50661957]
[1755519011580,0.06,181.94,181.93,71.50661957]
[1755519012099,0.72,181.94,181.93,44.83661957]
[1755519012295,8.1765607,181.94,181.93,44.81661957]
[1755519012810,8.1765607,181.94,181.93,39.32]
[1755519015703,0.72,181.94,181.93,39.32]
[1755519015995,0.72,181.94,181.93,44.81661957]
[1755519015996,8.1765607,181.94,181.93,44.81661957]
[1755519016197,0.06,181.94,181.93,44.81661957]
[1755519017824,0.06,181.94,181.93,45.47661957]
[1755519018007,0.06,181.94,181.93,44.81661957]
[1755519018719,0.75,181.94,181.93,44.81661957]
[1755519021232,0.06,181.94,181.93,44.81661957]
[1755519021402,4.16997401,181.94,181.93,44.81661957]
[1755519021603,0.06,181.94,181.93,45.47661957]
[1755519022120,0.06,181.94,181.93,44.81661957]
[1755519023525,0.06,181.94,181.93,45.47661957]
[1755519027507,0.06,181.94,181.93,99.67661957]
[1755519027742,0.06,181.94,181.93,99.01661957]
[1755519028124,0.06,181.94,181.93,59.69661957]
[1755519028324,0.06,181.94,181.93,98.99661957]
[1755519029145,0.06,181.94,181.93,59.69661957]
[1755519029314,0.06,181.94,181.93,98.99661957]
[1755519030849,0.06,181.94,181.93,125.65661957]
[1755519031134,0.06,181.94,181.93,124.99661957]
[1755519031648,0.06,181.94,181.93,98.99661957]
[1755519032217,0.06,181.94,181.93,5.49661957]
[1755519032443,0.06,181.94,181.93,44.79661957]
[1755519032650,0.06,181.94,181.93,45.45661957]
[1755519036472,0.06,181.94,181.93,44.79661957]
[1755519037742,0.06,181.94,181.93,45.45661957]
[1755519038048,0.06,181.94,181.93,99.65661957]
[1755519039842,0.06,181.94,181.93,107.11318027]
[1755519040844,0.06,181.94,181.93,133.11318027]
[1755519042351,0.06,181.94,181.93,125.65661957]
[1755519042650,0.06,181.94,181.93,133.11318027]
[1755519042858,0.06,181.94,181.93,125.65661957]
[1755519043032,0.06,181.94,181.93,133.11318027]
[1755519043934,1e-08,181.94,181.93,125.65661957]
[1755519044128,1e-08,181.94,181.93,133.11318027]
[1755519045458,1e-08,181.94,181.93,107.11318027]
[1755519049161,1e-08,181.94,181.93,52.91318027]
[1755519049336,1e-08,181.96,181.95,26.0]
[1755519049538,1e-08,181.96,181.95,72.7365607]
[1755519049737,1e-08,181.96,181.95,73.4365607]
[1755519049954,1e-08,181.96,181.95,78.93257608]
[1755519051038,1e-08,181.96,181.95,78.23257608]
[1755519052465,1e-08,181.96,181.95,71.47601538]
[1755519052659,1e-08,181.96,181.95,78.93257608]
[1755519053065,1e-08,181.96,181.95,71.47601538]
[1755519053361,1e-08,181.98,181.97,26.0]
[1755519053587,1e-08,181.98,181.97,73.1765607]
[1755519053962,1e-08,181.98,181.97,71.91541133]
[1755519054159,1e-08,181.98,181.97,71.21541133]
[1755519054360,1e-08,181.98,181.97,31.49541133]
[1755519054677,1e-08,181.98,181.97,71.23541133]
[1755519054874,1e-08,181.98,181.97,78.69197203]
[1755519055471,1e-08,181.98,181.97,79.39197203]
[1755519055667,1e-08,181.98,181.97,71.93541133]
[1755519055983,0.71,182.06,181.97,71.93541133]
[1755519056154,8.1665607,182.06,182.03,26.0]
[1755519056355,0.71,182.05,182.04,39.78]
[1755519056678,7.4565607,182.08,182.04,39.78]
[1755519056883,0.71,182.07,182.04,39.78]
[1755519057175,0.71,182.07,182.05,7.4565607]
[1755519057378,0.71,182.07,182.06,45.27269471]
[1755519057853,22.56277627,182.1,182.06,45.27269471]
[1755519058278,8.80269635,182.14,182.06,45.27269471]
[1755519058586,0.71,182.09,182.07,7.4565607]
[1755519058761,19.20463575,182.13,182.08,39.74]
[1755519058762,0.71,182.11,182.08,39.74]
[1755519058961,0.71,182.09,182.08,39.74]
[1755519059459,0.71,182.09,182.08,45.23209138]
[1755519059885,0.71,182.11,182.08,45.23209138]
[1755519060193,0.71,182.1,182.08,45.23209138]
[1755519060368,0.71,182.09,182.08,45.23209138]
[1755519060887,0.71,182.09,182.08,39.74]
[1755519061089,0.71,182.09,182.08,45.23209138]
[1755519061393,0.71,182.11,182.08,45.23209138]
[1755519061689,23.27277627,182.13,182.08,53.38865208]
[1755519061887,0.71,182.12,182.08,53.38865208]
[1755519062190,0.71,182.11,182.08,45.23209138]
[1755519062359,8.1665607,182.11,182.08,45.23209138]
[1755519062687,0.71,182.1,182.08,45.23209138]
[1755519062856,8.80269635,182.14,182.08,45.23209138]
[1755519063059,0.71,182.09,182.08,45.23209138]
[1755519063889,7.4565607,182.13,182.08,45.23209138]
[1755519064098,8.80269635,182.14,182.08,53.38865208]
[1755519064395,0.71,182.14,182.1,7.4565607]
[1755519064698,0.71,182.14,182.11,39.68]
[1755519064897,0.71,182.14,182.08,12.94865208]
[1755519065084,0.71,182.14,182.09,39.68]
[1755519065269,7.4565607,182.12,182.09,39.68]
[1755519065596,7.4565607,182.13,182.1,0.7]
[1755519065789,0.71,182.14,182.11,45.17112121]
[1755519066095,0.71,182.13,182.11,45.17112121]
[1755519066276,0.06,182.14,182.11,39.68]
[1755519066491,0.71,182.12,182.11,39.68]
[1755519067167,8.1665607,182.12,182.11,39.68]
[1755519067381,0.71,182.12,182.11,39.68]
[1755519069286,7.4565607,182.13,182.11,39.68]
[1755519069798,8.1665607,182.13,182.11,39.68]
[1755519070895,8.1665607,182.12,182.11,39.68]
[1755519071083,0.71,182.12,182.11,39.68]
[1755519071480,8.1665607,182.12,182.11,39.68]
[1755519071886,0.71,182.12,182.1,39.76]
[1755519072080,8.1665607,182.11,182.06,26.0]
[1755519072396,7.4565607,182.08,182.07,39.76]
[1755519072594,0.71,182.12,182.07,45.95237525]
[1755519072895,8.1665607,182.12,182.08,0.7]
[1755519073100,0.06,182.13,182.09,39.76]
[1755519073279,7.5165607,182.13,182.09,40.46]
[1755519073485,0.06,182.13,182.1,0.7]
[1755519073677,0.06,182.13,182.11,39.76]
[1755519074183,0.06,182.13,182.12,7.4565607]
[1755519074495,0.06,182.13,182.12,13.64744583]
[1755519075579,0.06,182.13,182.12,39.64744583]
[1755519076192,0.06,182.13,182.12,47.81400583]
[1755519077072,0.06,182.13,182.12,39.65744513]
[1755519077398,0.06,182.13,182.12,31.49088513]
[1755519077583,0.06,182.13,182.12,39.63744583]
[1755519079020,0.06,182.13,182.12,41.83796783]
[1755519079222,0.06,182.13,182.12,34.38140713]
[1755519079422,0.06,182.13,182.12,41.83796783]
[1755519079812,0.06,182.13,182.12,39.63744583]
[1755519080497,0.06,182.13,182.12,5.49088513]
[1755519080701,0.74,182.13,182.12,5.49088513]
[1755519081111,0.06,182.13,182.12,5.49088513]
[1755519081916,0.06,182.13,182.12,6.18088513]
[1755519082622,0.06,182.13,182.12,13.63744583]
[1755519083522,0.06,182.13,182.12,15.83796883]
[1755519083922,0.06,182.13,182.12,31.49088513]
[1755519084098,0.74,182.13,182.12,45.11088513]
[1755519084305,0.74,182.13,182.12,39.62]
[1755519084796,0.06,182.13,182.12,45.11088513]
[1755519085010,0.74,182.13,182.12,39.62]
[1755519085617,0.06,182.13,182.12,45.11088513]
[1755519086123,0.74,182.13,182.12,39.62]
[1755519086628,0.74,182.13,182.1,5.49148819]
[1755519086822,0.68,182.12,182.1,5.49148819]
[1755519087025,0.68,182.12,182.11,39.58]
[1755519087925,0.68,182.12,182.08,40.9731217]
[1755519088116,7.4565607,182.1,182.08,26.0]
[1755519088438,8.1365607,182.09,182.08,31.49208272]
[1755519088620,8.1365607,182.09,182.08,71.05208272]
[1755519088799,0.68,182.09,182.08,71.05208272]
[1755519089209,7.4565607,182.12,182.08,71.05208272]
[1755519089417,7.5165607,182.13,182.09,0.69]
[1755519089617,7.5165607,182.13,182.1,39.54]
[1755519089801,0.74,182.13,182.1,39.54]
[1755519090002,0.06,182.13,182.11,0.69]
[1755519090202,0.06,182.13,182.12,39.54]
[1755519090712,0.06,182.13,182.12,45.03088513]
[1755519091816,0.06,182.13,182.12,39.54]
[1755519092006,0.06,182.13,182.12,45.03088513]
[1755519093714,0.06,182.13,182.12,53.17744583]
[1755519094027,0.06,182.13,182.12,45.72088513]
[1755519094228,0.06,182.13,182.12,53.17744583]
[1755519096127,7.7565607,182.17,182.12,53.17744583]
[1755519096331,7.7565607,182.17,182.14,5.4902822]
[1755519096637,7.7565607,182.17,182.15,39.54]
[1755519097010,15.10621557,182.19,182.15,39.54]
[1755519097213,18.79254613,182.19,182.15,39.54]
[1755519097515,7.4565607,182.18,182.15,39.54]
[1755519098235,8.1365607,182.18,182.15,39.54]
[1755519098418,0.68,182.18,182.15,45.02994331]
[1755519098737,7.4565607,182.19,182.15,45.02994331]
[1755519098934,7.4565607,182.19,182.16,0.69]
[1755519099134,7.4565607,182.19,182.17,39.54]
[1755519099633,15.10621557,182.2,182.17,39.54]
[1755519099826,11.14597252,182.2,182.17,40.23]
[1755519100024,7.4565607,182.2,182.17,40.23]
[1755519100415,8.1365607,182.19,182.17,39.54]
[1755519100715,8.1365607,182.18,182.17,39.54]
[1755519100921,12.23810249,182.18,182.14,54.2]
[1755519101115,7.4565607,182.16,182.15,39.52]
[1755519101314,8.1365607,182.16,182.15,39.52]
[1755519101736,13.6262401,182.16,182.15,39.52]
[1755519101934,36.525065,182.16,182.15,39.52]
[1755519102339,15.10621557,182.15,182.07,15.106215]
[1755519102633,7.4565607,182.08,182.06,6.18245954]
[1755519102812,7.4565607,182.08,182.07,39.5]
[1755519103426,7.4565607,182.09,182.07,40.19]
[1755519103613,7.4565607,182.08,182.07,40.19]
[1755519103940,7.4565607,182.1,182.07,45.68239303]
[1755519104140,7.4565607,182.1,182.08,0.69]
[1755519104440,7.4565607,182.11,182.09,40.19]
[1755519104637,7.4565607,182.1,182.09,39.5]
[1755519106338,8.1665607,182.1,182.09,39.5]
[1755519107136,7.4565607,182.1,182.09,39.5]
[1755519107317,4.40497272,182.12,182.09,39.5]
[1755519107752,7.4565607,182.1,182.09,39.5]
[1755519108446,8.1665607,182.1,182.09,39.5]
[1755519108872,15.10621557,182.09,182.02,67.15039876]
[1755519109030,7.4565607,182.05,182.03,40.18]
[1755519109225,7.4565607,182.06,182.03,39.5]
[1755519109463,7.4565607,182.06,182.04,0.68]
[1755519109657,7.4565607,182.06,182.05,39.5]
[1755519109868,5.49118514,182.12,182.05,39.5]
[1755519110159,7.4565607,182.09,182.06,0.68]
[1755519110326,7.4565607,182.09,182.07,39.48]
[1755519111062,7.4565607,182.09,182.07,40.16]
[1755519111255,4.40463631,182.11,182.07,40.16]
[1755519111570,7.4565607,182.09,182.07,40.16]
[1755519112252,3.69463631,182.12,182.08,0.68]
[1755519112458,0.06,182.13,182.1,33.4565607]
[1755519112675,0.06,182.13,182.11,40.6]
[1755519113024,0.06,182.13,182.11,39.92]
[1755519113225,0.06,182.13,182.12,6.17088513]
[1755519116746,0.06,182.13,182.12,13.62744583]
[1755519121075,0.06,182.13,182.12,6.17088513]
[1755519121982,0.06,182.13,182.12,13.62744613]
[1755519122981,0.06,182.13,182.12,12.94744613]
[1755519123172,0.06,182.13,182.12,5.49088513]
[1755519123575,8.2265607,182.13,182.11,7.456561]
[1755519123760,8.1665607,182.12,182.09,0.03]
[1755519123960,7.4565607,182.1,182.09,0.03]
[1755519124163,22.56277627,182.1,182.09,39.95]
[1755519124400,31.06727574,182.1,182.09,0.03]
[1755519124906,36.55876393,182.1,182.09,0.03]
[1755519125372,15.96106017,182.1,182.09,0.03]
[1755519125571,8.1665607,182.1,182.09,0.03]
[1755519126096,3.69147565,182.11,182.09,0.03]
[1755519126273,7.4565607,182.11,182.09,0.03]
[1755519126983,0.77,182.13,182.09,5.52178977]
[1755519127372,7.4565607,182.11,182.09,5.52178977]
[1755519127688,0.77,182.13,182.09,5.52178977]
[1755519128088,8.2265607,182.13,182.09,5.52178977]
[1755519128263,0.77,182.13,182.09,5.52178977]
[1755519128590,8.2265607,182.13,182.09,5.52178977]
[1755519128966,7.5165607,182.13,182.09,6.20178977]
[1755519129166,8.2265607,182.13,182.09,5.52178977]
[1755519129366,0.71,182.12,182.09,5.52178977]
[1755519129787,7.5165607,182.13,182.09,6.20178977]
[1755519130080,6.83277627,182.15,182.09,6.20178977]
[1755519130285,7.4565607,182.13,182.1,0.68]
[1755519130496,7.4565607,182.13,182.11,39.92]
[1755519130706,9.18052096,182.16,182.11,39.92]
[1755519130995,7.4565607,182.13,182.11,39.92]
[1755519131306,3.69107226,182.15,182.11,45.41111541]
[1755519131501,7.4565607,182.14,182.11,46.09111541]
[1755519132392,24.72675756,182.17,182.11,46.09111541]
[1755519132393,7.4565607,182.15,182.11,46.09111541]
[1755519132802,22.56277627,182.16,182.12,0.68]
[1755519132983,7.4565607,182.17,182.13,0.68]
[1755519133182,7.4565607,182.17,182.14,39.88]
[1755519133183,4.10041002,182.16,182.14,39.88]
[1755519133391,6.9565607,182.17,182.14,39.88]
[1755519133785,15.10621557,182.18,182.14,40.56]
[1755519133991,22.56277627,182.18,182.14,40.56]
[1755519134176,22.56277627,182.18,182.14,39.88]
[1755519134376,7.4565607,182.18,182.15,0.68]
[1755519134888,7.4565607,182.17,182.14,45.3700754]
[1755519135388,7.4565607,182.17,182.14,46.0500754]
[1755519136202,7.4565607,182.17,182.14,45.3700754]
[1755519136504,7.4565607,182.17,182.12,33.4565607]
[1755519136505,7.4565607,182.16,182.12,26.0]
[1755519136682,5.48916005,182.18,182.13,39.84]
[1755519136683,7.4565607,182.15,182.13,39.84]
[1755519137184,7.4565607,182.16,182.13,39.84]
[1755519137379,9.6194108,182.18,182.13,39.84]
[1755519137593,7.4565607,182.16,182.13,0.66]
[1755519137806,7.4565607,182.16,182.14,39.82]
[1755519138192,7.4565607,182.17,182.14,39.82]
[1755519139007,7.4565607,182.17,182.14,40.48]
[1755519139588,7.4565607,182.15,182.14,39.82]
[1755519140209,15.10621557,182.17,182.14,39.82]
[1755519140398,11.14670263,182.17,182.15,0.66]
[1755519140902,7.4565607,182.17,182.15,0.66]
[1755519141082,7.4565607,182.17,182.14,40.48]
[1755519141288,7.4565607,182.16,182.14,39.82]
[1755519141617,7.4565607,182.15,182.14,39.82]
[1755519142010,7.4565607,182.16,182.14,39.82]
[1755519142398,3.69056214,182.17,182.15,0.66]
[1755519142592,7.5165607,182.18,182.15,0.66]
[1755519143114,0.06,182.18,182.15,0.66]
[1755519143409,0.06,182.18,182.16,0.66]
[1755519143610,0.06,182.18,182.17,39.88]
[1755519143917,7.5165607,182.18,182.17,39.88]
[1755519144297,36.34317306,182.18,182.17,39.88]
[1755519144513,36.34317306,182.18,182.12,86.38084025]
[1755519144514,36.34317306,182.18,182.15,39.86]
[1755519144818,7.4565607,182.16,182.15,39.86]
[1755519146396,3.69056214,182.17,182.15,39.86]
[1755519146619,3.69056214,182.17,182.16,0.66]
[1755519146915,4.10173017,182.17,182.16,0.66]
[1755519147123,11.20712284,182.18,182.16,0.66]
[1755519147712,3.75056214,182.18,182.17,0.66]
[1755519148009,0.06,182.18,182.17,0.66]
[1755519151311,0.06,182.18,182.17,6.14937805]
[1755519152399,7.3765607,182.2,182.17,6.14937805]
[1755519152718,3.69056214,182.21,182.18,40.54]
[1755519152902,7.4565607,182.2,182.18,40.54]
[1755519154330,3.69056214,182.21,182.18,46.02898013]
[1755519154528,7.4565607,182.2,182.18,46.02898013]
[1755519154726,7.4565607,182.2,182.19,0.66]
[1755519154916,7.4565607,182.2,182.18,45.36898013]
[1755519155110,7.4565607,182.2,182.18,46.02898013]
[1755519155710,11.14711518,182.21,182.18,46.02898013]
[1755519155911,11.14711518,182.21,182.19,0.66]
[1755519156127,3.69055448,182.21,182.19,0.66]
[1755519156312,7.4565607,182.21,182.19,0.66]
[1755519156512,11.14711518,182.21,182.19,0.66]
[1755519157241,3.69055448,182.21,182.19,0.66]
[1755519157437,3.75055448,182.22,182.19,5.48866788]
[1755519157644,0.06,182.22,182.2,0.66]
[1755519157933,7.5165607,182.22,182.2,0.66]
[1755519158523,0.06,182.22,182.2,6.14833396]
[1755519158844,0.06,182.22,182.21,0.66]
[1755519159912,0.06,182.22,182.2,5.48833396]
[1755519160230,0.06,182.22,182.2,6.14833396]
[1755519160910,0.06,182.22,182.21,0.66]
[1755519162137,0.06,182.22,182.21,40.44]
[1755519162438,0.06,182.22,182.21,45.92817298]
[1755519163552,0.06,182.22,182.21,40.44]
[1755519163849,0.06,182.22,182.21,39.78]
[1755519165748,7.5165607,182.22,182.21,39.78]
[1755519166125,7.5165607,182.22,182.18,6.14897571]
[1755519166126,7.5165607,182.22,182.18,0.66]
[1755519166320,0.5,182.22,182.18,39.72]
[1755519166634,7.4565607,182.19,182.18,39.72]
[1755519167247,7.4565607,182.2,182.18,39.72]
[1755519167624,7.4565607,182.19,182.18,39.72]
[1755519167940,7.4565607,182.2,182.18,39.72]
[1755519169027,7.4565607,182.2,182.18,40.41]
[1755519169241,5.98792585,182.22,182.18,40.41]
[1755519169636,7.4565607,182.2,182.18,40.41]
[1755519170044,5.54792585,182.22,182.18,40.41]
[1755519170324,7.4565607,182.21,182.19,0.69]
[1755519170749,7.5165607,182.22,182.18,45.20902485]
[1755519170953,0.06,182.22,182.2,0.69]
[1755519171728,0.06,182.22,182.21,0.69]
[1755519173828,0.06,182.22,182.21,6.17817298]
[1755519174039,0.06,182.22,182.21,45.79817298]
[1755519175448,0.06,182.22,182.21,40.31]
[1755519175948,0.06,182.22,182.21,39.62]
[1755519176663,0.06,182.22,182.21,40.31]
[1755519179763,0.06,182.22,182.21,45.79817298]
[1755519182255,0.06,182.22,182.18,7.4865607]
[1755519182454,0.06,182.22,182.19,40.23]
[1755519182854,0.06,182.22,182.2,0.69]
[1755519183054,0.06,182.22,182.21,39.54]
[1755519183256,7.5165607,182.22,182.21,39.54]
[1755519184078,0.06,182.22,182.21,45.02817298]
[1755519184371,3.74949851,182.22,182.21,40.23]
[1755519184539,0.06,182.22,182.21,40.23]
[1755519185870,15.31215005,182.22,182.21,39.54]
[1755519186067,15.31215005,182.22,182.18,0.72]
[1755519186273,7.4565607,182.2,182.19,39.52]
[1755519186453,11.14605921,182.2,182.19,39.52]
[1755519186681,7.4565607,182.2,182.19,39.52]
[1755519186859,11.14605921,182.2,182.19,39.52]
[1755519187173,7.4565607,182.2,182.19,39.52]
[1755519187368,11.14605921,182.2,182.19,39.52]
[1755519187670,11.14605921,182.21,182.19,40.21]
[1755519187851,3.68949851,182.2,182.19,39.52]
[1755519188247,7.4565607,182.21,182.19,39.52]
[1755519188449,7.4565607,182.21,182.2,0.69]
[1755519188450,11.15416296,182.21,182.2,0.69]
[1755519188649,3.69760226,182.21,182.2,0.69]
[1755519188878,0.06,182.22,182.2,8.1465607]
[1755519189048,0.06,182.22,182.21,46.9365607]
[1755519189375,0.06,182.22,182.21,47.6265607]
[1755519189553,0.06,182.22,182.21,52.42473368]
[1755519189748,0.06,182.22,182.21,45.65817298]
[1755519189948,0.06,182.22,182.21,53.11473368]
[1755519190570,0.06,182.22,182.21,45.65817298]
[1755519191756,0.06,182.22,182.21,53.11473368]
[1755519194685,0.06,182.22,182.21,79.11473368]
[1755519195273,0.06,182.24,182.22,15.10621557]
[1755519195463,0.06,182.24,182.23,72.9765607]
[1755519195662,0.06,182.24,182.23,73.6665607]
[1755519195885,0.06,182.24,182.23,79.15413135]
[1755519196060,0.06,182.24,182.23,86.95320735]
[1755519196261,7.4565607,182.32,182.23,100.67213398]
[1755519196457,3.69397932,182.32,182.24,0.69]
[1755519196797,3.69397932,182.35,182.31,7.4565607]
[1755519197083,4.10211999,182.34,182.32,40.19]
[1755519197302,11.15054002,182.36,182.32,40.19]
[1755519197581,4.09861972,182.35,182.32,40.19]
[1755519197777,15.92629206,182.41,182.33,8.1465607]
[1755519197965,7.4565607,182.37,182.34,39.48]
[1755519198166,3.68790661,182.38,182.34,39.48]
[1755519198372,7.4565607,182.37,182.34,39.48]
[1755519198680,7.4565607,182.39,182.35,0.69]
[1755519198856,7.4565607,182.39,182.36,39.46]
[1755519198857,7.4565607,182.38,182.36,39.46]
[1755519199055,3.68432745,182.39,182.36,39.46]
[1755519199256,7.4565607,182.38,182.36,39.46]
[1755519199468,11.14088815,182.39,182.36,39.46]
[1755519199674,7.4565607,182.37,182.36,39.46]
[1755519199966,7.9565607,182.37,182.36,39.46]
[1755519200853,0.5,182.37,182.36,39.46]
[1755519201090,7.9565607,182.37,182.35,39.44]
[1755519201388,7.4565607,182.37,182.35,39.44]
[1755519201756,7.4565607,182.36,182.35,39.44]
[1755519202387,7.9565607,182.36,182.35,39.44]
[1755519202871,7.4565607,182.36,182.35,39.44]
[1755519203692,15.10621557,182.37,182.35,39.44]
[1755519203988,22.56277627,182.37,182.35,39.44]
[1755519204585,15.60621557,182.37,182.35,39.44]
[1755519204788,7.4565607,182.36,182.35,39.44]
[1755519206695,13.44021939,182.36,182.35,39.44]
[1755519206873,28.54643496,182.36,182.35,39.44]
[1755519208803,15.10621557,182.35,182.33,39.4]
[1755519209103,7.4565607,182.35,182.33,39.4]
[1755519209605,7.4565607,182.35,182.33,40.09]
[1755519209899,7.4565607,182.35,182.33,39.4]
[1755519211105,7.4565607,182.36,182.33,39.4]
[1755519211898,7.4565607,182.35,182.33,39.4]
[1755519212103,0.5,182.36,182.33,39.4]
[1755519212474,7.4565607,182.35,182.33,39.4]
[1755519212794,7.4565607,182.36,182.33,40.09]
[1755519214576,7.4565607,182.36,182.33,39.4]
[1755519214577,7.4565607,182.35,182.33,39.4]
[1755519214819,7.9565607,182.34,182.33,39.4]
[1755519215107,7.4565607,182.34,182.3,39.38]
[1755519215411,7.4565607,182.34,182.31,0.69]
[1755519216493,5.48404779,182.35,182.3,39.38]
[1755519216684,7.4565607,182.34,182.32,0.69]
[1755519219088,7.4565607,182.36,182.32,5.48484772]
[1755519219293,16.67202101,182.37,182.33,0.69]
[1755519219494,16.67202101,182.37,182.33,40.07]
[1755519219691,11.18859146,182.37,182.34,0.69]
[1755519220312,7.4565607,182.36,182.34,0.69]
[1755519220486,7.4565607,182.35,182.33,39.38]
[1755519220689,7.4565607,182.34,182.33,39.38]
[1755519221090,7.4565607,182.34,182.31,40.07]
[1755519221490,7.4565607,182.34,182.32,0.69]
[1755519221692,7.4565607,182.34,182.31,39.38]
[1755519221890,7.4565607,182.34,182.31,40.07]
[1755519222089,7.4565607,182.33,182.31,40.07]
[1755519222412,7.4565607,182.34,182.32,0.69]
[1755519223417,12.9408657,182.34,182.31,39.38]
[1755519223710,12.9408657,182.34,182.31,40.07]
[1755519224109,7.4565607,182.32,182.31,39.38]
[1755519224311,7.4565607,182.32,182.29,39.38]
[1755519224616,7.4565607,182.3,182.29,39.38]
[1755519224820,7.4565607,182.31,182.29,40.07]
[1755519226014,7.4565607,182.32,182.3,0.69]
[1755519227091,7.4565607,182.32,182.29,39.38]
[1755519227092,7.4565607,182.33,182.31,0.68]
[1755519227292,7.4565607,182.34,182.29,44.86572771]
[1755519227508,7.4565607,182.33,182.32,0.68]
[1755519228087,12.94114733,182.33,182.3,0.68]
[1755519228291,7.4565607,182.31,182.29,39.38]
[1755519228504,5.48458663,182.33,182.28,0.68]
[1755519228505,7.4565607,182.32,182.28,0.68]
[1755519228691,7.4565607,182.32,182.29,39.38]
[1755519228893,7.4565607,182.31,182.29,39.38]
[1755519229394,7.4565607,182.32,182.29,40.06]
[1755519230118,12.94150454,182.32,182.29,40.06]
[1755519230508,12.94150454,182.32,182.29,39.38]
[1755519231206,12.94150454,182.32,182.29,40.06]
[1755519232196,7.4565607,182.3,182.25,0.68]
[1755519232397,7.4565607,182.29,182.26,39.38]
[1755519232616,7.4565607,182.29,182.26,40.06]
[1755519233000,7.4565607,182.29,182.26,39.38]
[1755519233505,7.4565607,182.28,182.24,0.03]
[1755519233820,7.4565607,182.25,182.24,0.03]
[1755519234210,12.94322809,182.26,182.24,0.03]
[1755519234611,7.4565607,182.25,182.24,0.03]
[1755519235907,27.16157367,182.25,182.24,0.03]
[1755519236250,35.82703475,182.25,182.24,0.03]
[1755519239021,7.77729004,182.25,182.24,0.03]
[1755519239240,4.0987974,182.25,182.24,0.71]
[1755519239438,5.48486178,182.32,182.24,8.1665607]
[1755519239607,30.34284963,182.31,182.26,7.4565607]
[1755519239808,7.78007336,182.3,182.27,0.68]
[1755519240002,4.09512141,182.29,182.27,0.68]
[1755519240340,22.56277627,182.28,182.24,0.71]
[1755519240521,15.10621557,182.28,182.24,0.71]
[1755519240704,22.56277627,182.28,182.25,0.68]
[1755519240906,7.4565607,182.29,182.24,0.03]